Cogmind - Beta 11.1 @@@ ROGUE MODE // 2022.04.27 @ 15:53:33 Player: Triffids Result: Destroyed by Y-64 Sentinel with KE Penetrator Performance ------------- Evolutions (6) 3000 Regions Visited (8) 1600 Robots Destroyed (69) 345 Value Destroyed (2336) 2336 Prototype IDs (5) 100 Alien Tech Used (0) 0 Bonus (511) 511 TOTAL SCORE: 7892 Bonus ------- High Alert Combat Kills 11 Entered DSFs 500 Cogmind --------- Core Integrity 0/1150 Matter 296/300 Energy 99/100 System Corruption 4% Temperature Cool (9) Movement Core (50) Location -4/Factory Parts ------- > --- POWER (1) -------- (None) > --- PROPULSION (4) --- (None) > --- UTILITY (10) ----- (None) > --- WEAPON (4) ------- (None) > --- INVENTORY (5) ---- Advanced Coolant Injector High-powered Shock Rifle Phase Gun Peak State ------------ > --- POWER ------------ Micro Fission Core > --- PROPULSION ------- Enhanced Flexi-carbon Leg Enhanced Flexi-carbon Leg Enhanced Flexi-carbon Leg > --- UTILITY ---------- Advanced Weight Redist. System Sensor Array Improved Signal Interpreter Advanced Targeting Computer Advanced Targeting Computer Core Analyzer Improved Powered Armor Hacking Suite System Shield > --- WEAPON ----------- Variable Charge Gun Heavy Machine Gun Heavy Machine Gun > --- INVENTORY -------- Improved Deuterium Engine Improved Light Armor Plating Cooled Plasma Rifle Heavy Machine Gun [Rating: 73] Favorites ----------- Power Improved Deuterium Engine Engine Improved Deuterium Engine Power Core Light Nuclear Core Propulsion Aluminum Leg Treads Medium Treads Leg Aluminum Leg Wheel Compact Wheel Hover Unit Linear Gravjet Utility Advanced Targeting Computer Device Improved Heat Sink Storage Small Storage Unit Processor Advanced Targeting Computer Hackware System Shield Protection Improved Light Armor Plating Weapon Field Laser Energy Gun Field Laser Ballistic Gun Railgun Slashing Weapon Power Sword Build | -11 -10 -9 -8 -7 -6 -6 -5 -4 ------- Run | Scr Mat Mat Mat Fac Fac DSF Fac Fac Slots Evolved 12 | . . 2 2 2 2 . 2 2 Power . | . . . . . . . . . Propulsion 2 | . . . . . . . 1 1 Utility 8 | . . 2 2 2 1 . 1 . Weapon 2 | . . . . . 1 . . 1 Parts Attached 88 | 6 6 8 9 27 . 3 20 9 Power 11 | 1 1 1 1 3 . . 2 2 Engine 6 | 1 1 . . 2 . . 1 1 Core 5 | . . 1 1 1 . . 1 1 Reactor . | . . . . . . . . . Propulsion 23 | 2 3 2 . 6 . . 8 2 Treads 1 | . . . . 1 . . . . Leg 14 | 2 3 2 . 3 . . 3 1 Wheel 4 | . . . . 2 . . 2 . Hover 4 | . . . . . . . 3 1 Flight . | . . . . . . . . . Utility 36 | 1 1 4 6 14 . 1 6 3 Device 12 | . 1 1 2 5 . 1 1 1 Storage 1 | 1 . . . . . . . . Processor 8 | . . 1 3 2 . . 1 1 Hackware 4 | . . . . 3 . . 1 . Protection 11 | . . 2 1 4 . . 3 1 Artifact . | . . . . . . . . . Weapon 18 | 2 1 1 2 4 . 2 4 2 Energy Gun 6 | 1 1 . 1 1 . . 1 1 Energy Cannon . | . . . . . . . . . Ballistic Gun 11 | 1 . 1 1 3 . 1 3 1 Ballistic Cannon . | . . . . . . . . . Launcher . | . . . . . . . . . Special Weapon . | . . . . . . . . . Impact Weapon . | . . . . . . . . . Slashing Weapon 1 | . . . . . . 1 . . Piercing Weapon . | . . . . . . . . . Special Melee Weapon . | . . . . . . . . . Unidentified Prototypes 2 | . . . . . . . 1 1 Parts Lost 56 | . 2 3 1 14 . 10 13 13 Power 8 | . 1 . 1 2 . 1 1 2 Propulsion 15 | . 1 1 . 4 . 2 4 3 Utility 22 | . . 2 . 6 . 3 5 6 Weapon 11 | . . . . 2 . 4 3 2 Highest Loss Streak 11 | . 1 1 1 5 . 9 8 11 To Critical Strikes 2 | . . . . . . 1 1 . Average Slot Usage (%) 87 | . 97 96 95 92 86 87 71 37 Engine 4 | . 14 2 . 4 6 5 1 2 Core 2 | . . 8 4 1 . . 1 . Leg 12 | . 28 22 18 9 . . 2 . Wheel 2 | . . . . 2 13 12 4 . Device 13 | . 11 12 17 15 13 11 8 2 Storage 4 | . 14 11 9 . . . . . Processor 17 | . . 6 18 23 20 20 21 9 Hackware 4 | . . . . 6 13 13 11 7 Protection 6 | . . 10 9 8 6 5 1 . Energy Gun 7 | . 14 11 9 7 6 4 1 3 Ballistic Gun 8 | . 14 11 9 6 6 6 10 3 Naked Turns 69 | . . . . . . . . 69 Heaviest Build 46 | 11 16 20 21 46 23 26 28 31 Greatest Support 93 | 20 20 20 20 32 32 32 93 21 Greatest Overweight (x) 3 | . . . 1 3 . 2 3 3 Average Overweight (x) . | . . . . . . . . . Largest Inventory Capacity 8 | 8 8 8 8 8 5 5 5 5 Average Capacity 6 | 5 8 8 8 5 5 5 5 5 Most Carried 8 | 5 8 8 8 7 5 5 5 5 Average Carried 5 | 3 4 7 7 4 5 4 3 3 Final Capacity 8 | 8 8 8 8 5 5 5 5 5 Final Carried 8 | 2 8 8 8 5 5 4 3 3 Class Distribution -------------------- 55% | Mutant 27% | Scavenger-Mutant 10% | Hacker-Gunner 7% | Hacker-Mutant Dominant Class ---------------- Mutant | -10/Materials Scavenger-Mutant | -9/Materials Mutant | -8/Materials Mutant | -7/Factory Scavenger-Mutant | -6/Factory Scavenger-Mutant | -6/DSF Hacker-Gunner | -5/Factory Hacker-Mutant | -4/Factory Resources | -11 -10 -9 -8 -7 -6 -6 -5 -4 ----------- Run | Scr Mat Mat Mat Fac Fac DSF Fac Fac Matter Collected 1732 | 149 224 210 163 617 . 54 90 225 Remotely . | . . . . . . . . . Salvage Created 3039 | . 245 626 214 1660 . . 87 207 Parts 165 | . 16 37 17 82 . . 6 7 Haulers Intercepted 4 | . 1 1 1 1 . . . . Recyclers Shooed 4 | . . 2 . 2 . . . . Parts Field Recycled . | . . . . . . . . . Retrieved Matter . | . . . . . . . . . Parts Self-Destructed . | . . . . . . . . . Prevented . | . . . . . . . . . Kills | -11 -10 -9 -8 -7 -6 -6 -5 -4 ------- Run | Scr Mat Mat Mat Fac Fac DSF Fac Fac Combat Hostiles Destroyed 45 | . 4 13 2 23 . . . 3 Guns 44 | . 4 13 2 23 . . . 2 Classes Destroyed 12 | . 3 3 1 3 . . 2 . Worker 1 | . . . . . . . 1 . Builder 2 | . . . 1 1 . . . . Tunneler 1 | . . . . . . . 1 . Hauler 4 | . 1 1 1 1 . . . . Recycler 7 | . . 1 . 6 . . . . Operator 1 | . . . . 1 . . . . Watcher 8 | . 1 . 3 3 . . 1 . Swarmer 6 | . . 2 . 4 . . . . Grunt 21 | . 4 7 . 8 . . . 2 Sentry 11 | . . 4 2 4 . . . 1 Hunter 2 | . . . . 2 . . . . Programmer 5 | . . . . 5 . . . . Best Kill Streak 6 | . 2 6 2 5 . . 2 1 Combat Bots Only 5 | . 2 5 1 4 . . . 1 Max Kills in Single Turn 2 | . 1 1 1 2 . . 1 1 Gunslinging 1 | . . . . 1 . . . . Exploded . | . . . . . . . . . Melee . | . . . . . . . . . Uniques/NPCs Destroyed . | . . . . . . . . . Combat | -11 -10 -9 -8 -7 -6 -6 -5 -4 -------- Run | Scr Mat Mat Mat Fac Fac DSF Fac Fac Damage Taken 8801 | . 283 678 122 2291 . 1071 2073 2283 Core 2579 | . 37 79 . 565 . 408 329 1161 Absorbed by Shields . | . . . . . . . . . Redirected to Shielding 103 | . . . . 103 . . . . Core Remaining (%) 71 | 100 85 80 100 19 . 52 67 . Volleys Fired 201 | . 24 42 21 86 . 3 11 14 Largest 3 | . 2 2 2 2 . 2 3 2 Hottest 285 | . 85 88 90 115 . 56 285 54 Shots Fired 409 | . 48 83 42 172 . 6 30 28 Gun 409 | . 48 83 42 172 . 6 30 28 Cannon . | . . . . . . . . . Launcher . | . . . . . . . . . Special . | . . . . . . . . . Kinetic 221 | . 24 42 21 88 . 6 26 14 Thermal 188 | . 24 41 21 84 . . 4 14 Explosive . | . . . . . . . . . Electromagnetic . | . . . . . . . . . Robot Hit Streak 17 | . 7 17 16 11 . 6 6 7 Robot Miss Streak 6 | . 3 2 3 5 . 6 5 3 Penetration Max . | . . . . . . . . . Secondary Targets 10 | . . 6 . 4 . . . . Max Gunslinging Chain 1 | . . 1 . 1 . . . . Shots Hit Robots 276 | . 31 61 31 114 . 4 16 19 Core Hits 127 | . 11 24 14 62 . 3 5 8 Critical Kills 1 | . . . . . . . 1 . Critical Parts Destroyed 1 | . . . . 1 . . . . Critical Strikes 12 | . . 2 2 5 . . 1 2 Burn 10 | . . 2 2 4 . . . 2 Destroy 2 | . . . . 1 . . 1 . Melee Attacks 1 | . . . . . . 1 . . Impact . | . . . . . . . . . Slashing 1 | . . . . . . 1 . . Piercing . | . . . . . . . . . Sneak Attacks . | . . . . . . . . . Combat Hostiles . | . . . . . . . . . Follow-up Attacks . | . . . . . . . . . Damage Inflicted 5470 | . 398 931 576 2620 . 51 396 498 Guns 5362 | . 398 931 576 2551 . 51 382 473 Cannons . | . . . . . . . . . Explosions 69 | . . . . 69 . . . . Melee . | . . . . . . . . . Ramming 39 | . . . . . . . 14 25 Kinetic 2946 | . 163 375 370 1486 . 51 270 231 Thermal 2416 | . 235 556 206 1065 . . 112 242 Explosive 69 | . . . . 69 . . . . Electromagnetic . | . . . . . . . . . Impact . | . . . . . . . . . Slashing . | . . . . . . . . . Piercing . | . . . . . . . . . Highest Corruption 4 | . . . . 3 . . 3 4 Average Corruption 2 | . . . . 2 . . 1 2 Corruption Purged . | . . . . . . . . . Corruption Blocked . | . . . . . . . . . Effects 31 | . . . . 26 . . 2 3 Message Errors 12 | . . . . 11 . . . 1 Matter Fused 4 | . . . . 3 . . . 1 Heat Flow Errors 4 | . . . . 4 . . . . Energy Discharges 5 | . . . . 4 . . 1 . Data Loss (minor) 4 | . . . . 2 . . 1 1 Misfires 2 | . . . . 2 . . . . Overload Shots 1 | . . . . . . . 1 . Overflow Damage 33 | . . . . 33 . . . . Projectiles . | . . . . . . . . . Explosions 33 | . . . . 33 . . . . Melee . | . . . . . . . . . Knockbacks . | . . . . . . . . . Impact . | . . . . . . . . . Kinetic . | . . . . . . . . . Secondary . | . . . . . . . . . Self-Inflicted Damage 137 | . . . . 119 . . 7 11 Shots 2 | . . . . 2 . . . . Rammed 8 | . . . . . . . 1 7 Targets Rammed 8 | . . . . . . . 1 7 Kicked . | . . . . . . . . . Crushed . | . . . . . . . . . Highest Temperature 318 | . 96 99 3 129 . . 318 17 Average Temperature 42 | . 30 23 2 22 . . 136 9 Received Heat Transfer 1583 | . 174 264 18 453 . . 297 377 Effects 4 | . . . . . . . 4 . Energy Bleed 1 | . . . . . . . 1 . Interference 3 | . . . . . . . 3 . Siege Activations . | . . . . . . . . . Robots Corrupted . | . . . . . . . . . Combat Hostiles . | . . . . . . . . . Parts Fried . | . . . . . . . . . Impact Corruptions . | . . . . . . . . . Robots Melted 1 | . . . . . . . . 1 Combat Hostiles 1 | . . . . . . . . 1 Parts Melted 13 | . . 2 1 8 . . 2 . Heat Transferred 6127 | . 534 1517 629 2586 . . 161 700 Parts Sabotaged . | . . . . . . . . . Parts Stolen . | . . . . . . . . . Parts Stripped . | . . . . . . . . . Power Chain Reactions . | . . . . . . . . . Missiles Intercepted . | . . . . . . . . . Alert | -11 -10 -9 -8 -7 -6 -6 -5 -4 ------- Run | Scr Mat Mat Mat Fac Fac DSF Fac Fac Peak Influence 419 | . 177 384 153 419 205 163 76 371 Initial 205 | . . 1 77 . 205 143 46 26 Average 112 | . 61 165 61 148 205 143 40 134 Maximum Alert Level 2 | . . 1 . 2 1 . . 1 Low Security (%) 83 | 100 100 71 100 71 . 100 100 85 Level 1 14 | . . 28 . 24 100 . . 14 Level 2 1 | . . . . 4 . . . . Level 3 . | . . . . . . . . . Level 4 . | . . . . . . . . . Level 5 . | . . . . . . . . . High Security . | . . . . . . . . . Max Security . | . . . . . . . . . Squads Dispatched 20 | . . 2 . 13 . 1 3 1 Investigation 2 | . . 1 . 1 . . . . Extermination 6 | . . . . 6 . . . . Reinforcement 7 | . . 1 . 3 . 1 1 1 Assault 1 | . . . . . . . 1 . Garrison 4 | . . . . 3 . . 1 . Intercept . | . . . . . . . . . Searches Triggered . | . . . . . . . . . Construction Impeded . | . . . . . . . . . Haulers Reinforced . | . . . . . . . . . Active Scanning Responses . | . . . . . . . . . Cargo Convoy Interrupts . | . . . . . . . . . Stealth | -11 -10 -9 -8 -7 -6 -6 -5 -4 --------- Run | Scr Mat Mat Mat Fac Fac DSF Fac Fac Distress Signals 5 | . . 1 1 . . . . 3 Communications Jammed . | . . . . . . . . . Distress Signals . | . . . . . . . . . Times Spotted 144 | . 7 17 12 43 . 5 27 33 Peak Tracking Total 24 | . 3 7 3 4 . 3 24 17 Tactical Retreats 13 | . 1 . . 1 . 3 3 5 Traps | -11 -10 -9 -8 -7 -6 -6 -5 -4 ------- Run | Scr Mat Mat Mat Fac Fac DSF Fac Fac Traps Triggered 6 | . . 1 1 1 . . 3 . Indirectly . | . . . . . . . . . Trap Hack Attempts . | . . . . . . . . . Triggered . | . . . . . . . . . Disarmed . | . . . . . . . . . Reprogrammed . | . . . . . . . . . Reused . | . . . . . . . . . Traps Extracted . | . . . . . . . . . Installed . | . . . . . . . . . Triggered . | . . . . . . . . . Machines | -11 -10 -9 -8 -7 -6 -6 -5 -4 ---------- Run | Scr Mat Mat Mat Fac Fac DSF Fac Fac Machines Disabled 5 | . 1 . . 4 . . . . Max in Single Turn 1 | . 1 . . 1 . . . . Garrison Access 3 | . . . 1 . . . 2 . Machines Sabotaged . | . . . . . . . . . Garrisons Compromised . | . . . . . . . . . Overloaded Fab Kills . | . . . . . . . . . Hacking | -11 -10 -9 -8 -7 -6 -6 -5 -4 --------- Run | Scr Mat Mat Mat Fac Fac DSF Fac Fac Machines Accessed 23 | . 5 4 4 5 1 . 4 . Terminals 15 | . 4 3 2 2 1 . 3 . Fabricators 2 | . . . . 2 . . . . Repair Stations . | . . . . . . . . . Recycling Units 3 | . 1 1 . 1 . . . . Scanalyzers 1 | . . . 1 . . . . . Garrison Access 2 | . . . 1 . . . 1 . Total Hacks 56 | . 13 11 9 9 2 . 12 . Successful 32 | . 9 9 4 4 1 . 5 . Failed 23 | . 3 2 5 5 1 . 7 . Catastrophic 4 | . . . . 3 . . 1 . Database Lockouts 1 | . 1 . . . . . . . Manual 24 | . 12 5 5 2 . . . . Terminals 43 | . 12 10 6 4 2 . 9 . Fabricators 4 | . . . . 4 . . . . Repair Stations . | . . . . . . . . . Recycling Units 3 | . 1 1 . 1 . . . . Scanalyzers 1 | . . . 1 . . . . . Garrison Access 5 | . . . 2 . . . 3 . Terminal Hacks 19 | . 6 6 1 1 1 . 4 . Robot Analysis 3 | . 1 . 1 . . . 1 . Prototype ID Bank 1 | . . . . . . . 1 . Open DSF 1 | . . . . . 1 . . . Level Access Points 2 | . 1 1 . . . . . . Branch Access Points 1 | . 1 . . . . . . . Emergency Access Points 1 | . 1 . . . . . . . Terminal Index 2 | . 1 1 . . . . . . Alert Level 1 | . . . . . . . 1 . Locate Traps 1 | . . 1 . . . . . . Dispatch Records 1 | . . 1 . . . . . . Transport Status 1 | . . 1 . . . . . . Recall Reinforcements 1 | . . . . 1 . . . . Registered Components 1 | . . . . . . . 1 . Zone Layout 2 | . 1 1 . . . . . . Fabricator Hacks 2 | . . . . 2 . . . . Network Status 1 | . . . . 1 . . . . Build 1 | . . . . 1 . . . . Repair Station Hacks . | . . . . . . . . . Recycling Unit Hacks 3 | . 1 1 . 1 . . . . Report Inventory 3 | . 1 1 . 1 . . . . Scanalyzer 1 | . . . 1 . . . . . Insert Component 1 | . . . 1 . . . . . Garrison Access Hacks 2 | . . . 1 . . . 1 . Seal Access 2 | . . . 1 . . . 1 . Unauthorized Hacks 5 | . 2 2 1 . . . . . Terminals 5 | . 2 2 1 . . . . . Botnet 5 | . 2 2 1 . . . . . Fabricators . | . . . . . . . . . Repair Stations . | . . . . . . . . . Recycling Units . | . . . . . . . . . Scanalyzers . | . . . . . . . . . Garrison Access . | . . . . . . . . . Data Cores Recovered 1 | . . . . 1 . . . . Used 1 | . . . . 1 . . . . Hacking Detections 17 | . 4 2 4 3 . . 4 . Full Trace Events 1 | . . . . 1 . . . . Feedback Events . | . . . . . . . . . Feedback Blocked . | . . . . . . . . . Robot Schematics Acquired . | . . . . . . . . . Robots Built . | . . . . . . . . . Authchips . | . . . . . . . . . Time . | . . . . . . . . . Total Robot Build Rating . | . . . . . . . . . Part Schematics Acquired . | . . . . . . . . . Parts Built 2 | . . . . 2 . . . . Authchips . | . . . . . . . . . Time 58 | . . . . 58 . . . . Total Part Build Rating 14 | . . . . 14 . . . . Parts Repaired . | . . . . . . . . . Time . | . . . . . . . . . Parts Recycled . | . . . . . . . . . Recycled Matter . | . . . . . . . . . Retrieved Matter . | . . . . . . . . . Retrieved Components . | . . . . . . . . . Parts Scanalyzed . | . . . . . . . . . Part Schematics Acquired . | . . . . . . . . . Parts Damaged . | . . . . . . . . . Bothacking | -11 -10 -9 -8 -7 -6 -6 -5 -4 ------------ Run | Scr Mat Mat Mat Fac Fac DSF Fac Fac Used RIF Installer . | . . . . . . . . . Robots Hacked . | . . . . . . . . . Non-combat . | . . . . . . . . . Combat . | . . . . . . . . . Robot Hacks Applied . | . . . . . . . . . Relay Couplers Released 1 | . . . . . . . 1 . Machine Destruction 1 | . . . . . . . 1 . Fabnet Peak Effective % . | . . . . . . . . . Robots Rewired . | . . . . . . . . . Allies Hacked . | . . . . . . . . . Hacks Repelled . | . . . . . . . . . Allies | -11 -10 -9 -8 -7 -6 -6 -5 -4 -------- Run | Scr Mat Mat Mat Fac Fac DSF Fac Fac Total Allies . | . . . . . . . . . Largest Group . | . . . . . . . . . Highest-Rated Group . | . . . . . . . . . Highest-Rated Ally . | . . . . . . . . . Total Orders . | . . . . . . . . . Ally Attacks . | . . . . . . . . . Total Damage . | . . . . . . . . . Kills . | . . . . . . . . . Allies Corrupted . | . . . . . . . . . Allies Melted . | . . . . . . . . . Intel | -11 -10 -9 -8 -7 -6 -6 -5 -4 ------- Run | Scr Mat Mat Mat Fac Fac DSF Fac Fac Robot Analysis Total 3 | . 1 . 1 . . . 1 . Derelict Logs Recovered . | . . . . . . . . . Drone Launches . | . . . . . . . . . Drone Recoveries . | . . . . . . . . . Exploration | -11 -10 -9 -8 -7 -6 -6 -5 -4 ------------- Run | Scr Mat Mat Mat Fac Fac DSF Fac Fac Turns Passed 5437 | 33 523 562 903 2202 52 143 671 348 Spaces Moved 3922 | 37 348 336 550 1259 45 121 703 523 Core 372 | 36 . . . 24 . 16 77 219 Treads 227 | . . . . 227 . . . . Legs 1997 | 1 348 336 550 682 . . 80 . Wheels 810 | . . . . 326 45 105 334 . Hover 516 | . . . . . . . 212 304 Flight . | . . . . . . . . . Fastest Speed 40 | 50 120 120 120 100 100 50 40 40 Average Speed 114 | 51 120 120 147 144 100 95 84 52 Slowest Speed 260 | 120 120 120 190 260 100 150 200 200 Overloaded Moves . | . . . . . . . . . Propulsion Burnouts . | . . . . . . . . . Robots Hopped . | . . . . . . . . . Cave-ins Triggered . | . . . . . . . . . Exploration Rate (%) 31 | 4 54 35 34 27 1 82 25 21 Regions Visited 8 Branch Regions . Pre-discovered Areas . | . . . . . . . . . Known Exits Taken 5 | . 1 1 1 1 1 . . . Unknown Exits Taken 2 | 1 . . . . . . 1 . Scrap Searched . | . . . . . . . . . Spaces Dug . | . . . . . . . . . Terrain Destroyed 60 | . 3 . . 57 . . . . Melee . | . . . . . . . . . Projectile 16 | . . . . 16 . . . . AOE 44 | . 3 . . 41 . . . . Terrain Rammed . | . . . . . . . . . Walls Destroyed . | . . . . . . . . . Machines Disabled . | . . . . . . . . . Actions | -11 -10 -9 -8 -7 -6 -6 -5 -4 --------- Run | Scr Mat Mat Mat Fac Fac DSF Fac Fac Total 4457 | 49 408 413 604 1467 52 139 756 569 Wait 146 | . 16 19 10 71 8 10 8 4 Move 3914 | 36 347 335 549 1258 44 120 702 523 Hop . | . . . . . . . . . Pick Up 51 | 6 10 5 6 10 . 1 6 7 Fast Attach 37 | 3 1 2 2 12 . 1 12 4 Attach 31 | 3 2 4 2 8 . 2 5 5 Detach 7 | . . . 1 1 . . 3 2 Swap 20 | . 3 2 5 7 . . 3 . Drop 40 | 1 5 4 8 14 . . 5 3 Fire 201 | . 24 42 21 86 . 3 11 14 Melee 1 | . . . . . . 1 . . Ram 8 | . . . . . . . 1 7 Kick . | . . . . . . . . . Crush . | . . . . . . . . . Escape Stasis . | . . . . . . . . . Rewire 1 | . . . . . . 1 . . Trap . | . . . . . . . . . Miscellaneous . | . . . . . . . . . Route ------- -11/Scrapyard -10/Materials (discovered 4 exits: *Mat x3 / *Min) -9/Materials (discovered 3 exits: *Mat x3) -8/Materials -7/Factory (discovered 3 exits: *Fac / *Sto / *Low) -6/Factory -6/DSF -5/Factory -4/Factory History --------- Turn | Location | Event 11 | -11/Scrapyard | Discovered new exit (range 15) 34 | -11/Scrapyard | Entered Materials 70 | -10/Materials | Discovered new exit (range 13) 317 | -10/Materials | Build established: Mutant 368 | -10/Materials | Identified exit to Mines 409 | -10/Materials | Identified exit to Materials 488 | -10/Materials | Central database locked down 557 | -10/Materials | Entered another Materials area 557 | -9/Materials | Evolved 2 slots: Utility x2 735 | -9/Materials | Identified exit to Materials 1111 | -9/Materials | Build established: Scavenger-Mutant 1119 | -9/Materials | Entered another Materials area 1119 | -8/Materials | Evolved 2 slots: Utility x2 1626 | -8/Materials | Build established: Mutant 1863 | -8/Materials | Discovered new exit (range 5) 1873 | -8/Materials | Identified exit to Factory 2022 | -8/Materials | Entered Factory 2022 | -7/Factory | Evolved 2 slots: Utility x2 2250 | -7/Factory | Fabricated Railgun? 2615 | -7/Factory | Lost 5 parts (1p1n3u) 2825 | -7/Factory | Discovered new exit (range 14) 2874 | -7/Factory | Identified exit to Storage 3465 | -7/Factory | Build established: Scavenger-Mutant 3540 | -7/Factory | Lost 3 parts (1n2u) 3752 | -7/Factory | Core integrity fell below 50% 3783 | -7/Factory | Lost 3 parts (1p1n1u) 3797 | -7/Factory | Build established: Mutant 4100 | -7/Factory | Build established: Scavenger-Mutant 4117 | -7/Factory | Core integrity fell below 20% 4123 | -7/Factory | Discovered new exit (range 12) 4133 | -7/Factory | Identified exit to Lower Caves 4183 | -7/Factory | Discovered new exit (range 10) 4198 | -7/Factory | Identified exit to Factory 4224 | -7/Factory | Entered another Factory area 4224 | -6/Factory | Evolved 2 slots: Utility x1, Weapon x1 4275 | -6/Factory | Identified exit to DSF 4276 | -6/Factory | Entered DSF 4310 | -6/DSF | Additional patrols routed to DSF 4406 | -6/DSF | Discovered new exit (range 15) 4419 | -6/DSF | Identified exit to Factory 4419 | -6/DSF | Entered Factory 4419 | -5/Factory | Evolved 2 slots: Propulsion x1, Utility x1 4444 | -5/Factory | Lost 9 parts (1p2n2u4w) 4718 | -5/Factory | Build established: Hacker-Gunner 4807 | -5/Factory | Spotted B-75 Beast 4933 | -5/Factory | Found Imp. Powered Armor 4942 | -5/Factory | Garrison activated, responded to threat 5016 | -5/Factory | Lost 8 parts (1n4u3w) 5088 | -5/Factory | Discovered new exit (range 5) 5090 | -5/Factory | Entered another Factory area 5090 | -4/Factory | Evolved 2 slots: Propulsion x1, Weapon x1 5288 | -4/Factory | Build established: Hacker-Mutant 5348 | -4/Factory | Spotted B-86 Titan 5372 | -4/Factory | Core integrity fell below 50% 5394 | -4/Factory | Lost 11 parts (1p3n5u2w) 5410 | -4/Factory | Core integrity fell below 20% 5438 | -4/Factory | Destroyed by Y-64 Sentinel with KE Penetrator Last Messages --------------- 05367_ K-01 Serf cleans the Fusion Modulator. 05369_ Discarded Broken Imp. Armor Integrity Analyzer. 05370_ K-01 Serf cleans the Fusion Modulator. 05372_ K-01 Serf destroyed. 05376_ Penetrated by Slug. 05376_ K-01 Serf collects debris. 05378_ A-15 Conveyor suffers critical hit (Destroy). 05379_ System corrupted: Component data lost. 05381_ Penetrated by Slug. 05382_ K-01 Serf destroyed. 05384_ K-01 Serf collects debris. 05384_ Penetrated by Slug. 05412_ System corrupted: Matter fused (-9). 05412_ ALERT: Security rotation in progress. 05419_ Slammed into U-05 Engineer. 05419_ Destabilizing: System corrupted (+2). 05422_ Connecting with Terminal... 05422_ Current location identified: Factory 05432_ WW<0YG FC::B16RB>EMIE DUT 05438_ Penetrated by Slug. Map ----- +----------------------------------------------------+ | ?????????????????????????????????????????????????? | | ?????????????????????????????????????????????????? | | ?????????????????????????????????????????????????? | | ???????????#####?????????????????????????????????? | | ???????????# ??????????????????????????????????? | | ???????????# #??????????????????????????????????? | | ????????#### #??????????????????????????????????? | | ????????+ ########???????????????????????????? | | ????????# # #???????????????????????????? | | ###?????# # #???????????????????????????? | | ####### # #???????????????????????????? | | + #???????????????????????????? | | ##### # #???????????????????????????? | | ##???# ### # #???????????????????????????? | | #????# #?# #+####+#???????????????????????????? | | #????# #?# #??# #???????????????????????????? | | #????# #?# #??# #???????????????????????????? | | #????#+#?# #??# #???????????????????????????? | | #??????#?# #??# #???????????????????????????? | | #???? #?# #?## ##+#????????????????????????? | | #?? #?# ### # #????????????????????????? | | # #?# T # #????????????????????????? | | + #?#####+###s # #??????##????????????????? | | # *#????# ### #???? #????????????????? | | #??#####????# ! ### ### #????????????????? | | ???????????# + Y @ +????????????????? | | ###??????????# ! # ###### #????????????????? | | ?????????????# # #??????? #????????????????? | | ?????????????#[[ + #?????????##????????????????? | | ?????????????#[| ###+####????????????????????????? | | ?????????????#####! #????????????????????????? | | ?????????????????# """ #????????????????????????? | | ?????????????????# """ #????????????????????????? | | ?????????????????# """ #????????????????????????? | | ?????????????????#! #????????????????????????? | | ?????????????????# " " #????????????????????????? | | ?????????????????# "Y" #????????????????????????? | | ?????????????????# ?""?#????????????????????????? | | ?????????????????###?????????????????????????????? | | ?????????????????????????????????????????????????? | | ?????????????????????????????????????????????????? | | ?????????????????????????????????????????????????? | | ?????????????????????????????????????????????????? | | ?????????????????????????????????????????????????? | | ?????????????????????????????????????????????????? | | ?????????????????????????????????????????????????? | | ?????????????????????????????????????????????????? | | ?????????????????????????????????????????????????? | | ?????????????????????????????????????????????????? | | ?????????????????????????????????????????????????? | +----------------------------------------------------+ Best States ------------- Heat Dissipation 51 Energy Generation 19 Energy Capacity 315 Matter Stores 300 Matter Capacity 300 Sight Range 20 Robot Scan Range 15 Terrain Scan Density 10 Additional Mass Support 9 Armor Coverage 400 Resistance: KI 30 Propulsion Shielding 66 Evasion (%) 63 Targeting Accuracy 16 Target Analysis 5 Core Analysis 6 Armor Integrity Analysis 40 Recoil Reduction 1 Offensive Hacking 10 Defensive Hacking 10 Authchip Count 1 Item Schematics ----------------- None Robot Schematics ------------------ None Fabricated ------------ Railgun | x2 | -7/Factory | Preloaded Alien Tech Used ----------------- None Achievements -------------- None Challenges ------------ None Game ------ Seed FlightLauncherLeg Manual? 0 Play Time 01:23:25 Cumulative 112.7 hours Start 2022.04.24 @ 16:24:56 End 2022.04.27 @ 15:53:33 Sessions 5 Manual Loads 0 Difficulty Rogue Special Mode None Game No. 137 Rogue 137 Adventurer 0 Explorer 0 Win Type - Total 0 Types 0/0/0/0/0/0/0/0/0 Lore% 41 Gallery% 42 Achievement% 31 Wizard Run 0 Options --------- ASCII 0 Keyboard 1 Movement Vi Keybinds 0 Fullscreen 0 Font 20/SmallcapsGlow Map View 76x50 Tactical HUD 1 Map Filters NONE Filters NONE Steam 1 RUN: e7399666-0d84-4576-8b11-154d78577892